fUSD/lending_fUSD_20260127
["ID","MTS","AMOUNT","RATE_DAILY","PERIOD"]
[403697758,1769490644490,-151.0,0.00018,2]
[403697759,1769490644500,-202.688092,0.00018,2]
[403697761,1769490644509,-151.0,0.00018,2]
[403697762,1769490644519,-222.0147,0.00018,2]
[403697763,1769490644527,-151.0,0.00018,2]
[403697764,1769490644536,-151.0,0.00018,2]
[403697765,1769490644545,-158.877636,0.00018,2]
[403697766,1769490644554,-151.0,0.00018,2]
[403697767,1769490644563,-151.0,0.00018,2]
[403697768,1769490644573,-151.0,0.00018,2]
[403697769,1769490644581,-160.718716,0.00018,2]
[403697770,1769490644591,-579.966456,0.00018,2]
[403697771,1769490644600,-579.966456,0.00018,2]
[403697772,1769490644610,-579.966456,0.00018,2]
[403697773,1769490644619,-579.966456,0.00018,2]
[403697774,1769490644629,-579.966456,0.00018,2]
[403697775,1769490644638,-579.966456,0.00018,2]
[403697776,1769490644649,-579.966456,0.00018,2]
[403697777,1769490644658,-579.966456,0.00018,2]
[403697778,1769490644669,-579.966456,0.00018,2]
[403697779,1769490644679,-579.966456,0.00018,2]
[403697780,1769490644690,-579.966456,0.00018,2]
[403697781,1769490644701,-579.966456,0.00018,2]
[403697782,1769490644711,-579.966456,0.00018,2]
[403697783,1769490644722,-579.966456,0.00018,2]
[403697784,1769490644734,-579.966456,0.00018,2]
[403697785,1769490644743,-579.966456,0.00018,2]
[403697786,1769490644753,-150.0,0.00018,2]
[403697787,1769490644765,-150.0,0.00018,2]
[403697788,1769490644778,-150.0,0.00018,2]
[403697789,1769490644789,-937.43,0.00018,2]
[403697790,1769490644798,-150.0,0.00018,2]
[403697791,1769490644808,-300.0,0.00018,2]
[403697792,1769490644818,-521.46024,0.00018,2]
[403697793,1769490644830,-521.46023,0.00018,2]
[403697794,1769490644840,-521.46024,0.00018,2]
[403697795,1769490644849,-521.46023,0.00018,2]
[403697796,1769490644860,-151.0,0.00018,2]
[403697797,1769490644870,-151.0,0.00018,2]
[403697798,1769490644879,-151.0,0.00018,2]
[403697799,1769490644890,-151.0,0.00018,2]
[403697800,1769490644901,-151.0,0.00018,2]
[403697801,1769490644910,-151.0,0.00018,2]
[403697802,1769490644919,-151.0,0.00018,2]
[403697803,1769490644928,-800.749989,0.00018,2]
[403697804,1769490644937,-151.0,0.00018,2]
[403697805,1769490644948,-800.749989,0.00018,2]
[403697806,1769490644958,-800.749989,0.00018,2]
[403697807,1769490644968,-800.749989,0.00018,2]
[403697808,1769490644979,-800.749989,0.00018,2]
[403697810,1769490644990,-800.749989,0.00018,2]
[403697811,1769490644999,-800.749989,0.00018,2]
[403697812,1769490645009,-800.749989,0.00018,2]
[403697813,1769490645020,-800.749989,0.00018,2]
[403697814,1769490645031,-800.749989,0.00018,2]
[403697815,1769490645041,-800.749989,0.00018,2]
[403697816,1769490645050,-800.749989,0.00018,2]
[403697817,1769490645060,-800.749989,0.00018,2]
[403697818,1769490645070,-800.749989,0.00018,2]
[403697819,1769490645080,-800.749989,0.00018,2]
[403697820,1769490645091,-800.749989,0.00018,2]
[403697821,1769490645101,-503.0,0.00018,2]
[403697822,1769490645112,-151.0,0.00018,2]
[403697823,1769490645122,-151.0,0.00018,2]
[403697824,1769490645131,-151.0,0.00018,2]
[403697825,1769490645140,-151.0,0.00018,2]
[403697826,1769490645150,-151.0,0.00018,2]
[403697827,1769490645159,-151.0,0.00018,2]
[403697828,1769490645168,-151.0,0.00018,2]
[403697829,1769490645177,-151.0,0.00018,2]
[403697830,1769490645186,-151.0,0.00018,2]
[403697831,1769490645195,-151.0,0.00018,2]
[403697832,1769490645204,-202.653038,0.00018,2]
[403697833,1769490645214,-2000.0,0.00018016,2]
[403697834,1769490645226,-282.761441,0.00018017,2]
[403697835,1769490645236,-446.27592211,0.00018028,2]
[403697837,1769490645245,-300.0,0.00018082,4]
[403697838,1769490645255,-150.00414663,0.00018151,3]
[403697839,1769490645264,-168.0,0.00018169,2]
[403697840,1769490645274,-537.0,0.00018184,2]
[403697841,1769490645283,-334.5472959,0.00018219,2]
[403697842,1769490645293,-181.0,0.00018232,2]
[403697843,1769490645304,-1679.5336628,0.00018243,2]
[403697844,1769490645315,-166.66,0.00018269,2]
[403697845,1769490645325,-537.0,0.00018283,2]
[403697846,1769490645334,-1000.0,0.00018294,2]
[403697847,1769490645343,-376.6589444,0.00018299,2]
[403697848,1769490645354,-1000.0,0.00018356,2]
[403697849,1769490645364,-1781.9999473,0.00018356,2]
[403697850,1769490645373,-537.0,0.00018359,2]
[403697851,1769490645384,-2351.0,0.00018417,2]
[403697852,1769490645393,-537.0,0.0001842,2]
[403697853,1769490645403,-537.0,0.00018458,2]
[403697854,1769490645412,-189.97,0.00018483,2]
[403697855,1769490645424,-201.93286099,0.00018494,2]
[403697856,1769490645437,-918.64355495,0.00018494,2]
[403697857,1769490645447,-194.72792766,0.00018494,2]
[403697858,1769490645455,-367.84,0.00018512,2]
[403697859,1769490645465,-168.0,0.00018531,2]
[403697860,1769490645474,-537.0,0.00018547,2]
[403697861,1769490645483,-1005.35974623,0.00018564,2]
[403697862,1769490645493,-168.0,0.00018571,2]
[403697863,1769490645502,-212.21,0.00018619,2]
[403697864,1769490645511,-300.0,0.0001863,4]
[403697865,1769490645520,-168.0,0.00018637,2]
[403697866,1769490645529,-503.0,0.00018646,2]
[403697867,1769490645538,-1000.0,0.00018646,2]
[403697868,1769490645548,-537.0,0.00018651,2]
[403697869,1769490645556,-967.5335229,0.0001866,2]
[403697870,1769490645565,-168.0,0.00018693,2]
[403697871,1769490645575,-212.21605124,0.000187,2]
[403697872,1769490645584,-160.38,0.000187,2]
[403697873,1769490645593,-168.0,0.0001873,2]
[403697874,1769490645602,-537.0,0.00018799,2]
[403697875,1769490645611,-166.66,0.00018817,2]
[403697876,1769490645621,-162.75,0.00018854,2]
[403697877,1769490645630,-166.67,0.00018854,2]
[403697878,1769490645639,-1001.46927476,0.00018888,2]
[403697879,1769490645649,-374.7546151,0.00018896,2]
[403697880,1769490645658,-167.95681876,0.000189,2]
[403697881,1769490645667,-537.0,0.0001896,2]
[403697882,1769490645676,-168.0,0.00018976,2]
[403697883,1769490645685,-300.0,0.00018999,2]
[403697884,1769490645695,-300.0,0.00018999,2]
[403697885,1769490645704,-276.76711978,0.00018999,2]
[403697886,1769490645712,-300.0,0.00018999,2]
[403697887,1769490645722,-300.0,0.00018999,2]
[403697888,1769490645731,-5168.48481096,0.00019,2]
[403697889,1769490645740,-16083.23994447,0.00019,2]
[403697890,1769490645749,-509.15344353,0.00019,2]
[403697891,1769490645758,-300.0,0.00019,2]
[403697892,1769490645767,-2854.57765679,0.00019,2]
[403697893,1769490645777,-358.47419463,0.0001901,7]
[403697894,1769490645786,-162.75,0.00019015,2]
[403697895,1769490645796,-168.0,0.0001903,2]
[403697896,1769490645805,-952.63336648,0.00019042,2]
[403697897,1769490645814,-327.5569721,0.00019042,2]
[403697898,1769490645823,-537.0,0.00019075,2]
[403697899,1769490645832,-160.38,0.00019106,2]
[403697900,1769490645841,-158.95,0.00019133,2]
[403697901,1769490645850,-3345.44804255,0.00019174,2]
[403697902,1769490645860,-162.75,0.00019176,2]
[403697903,1769490645869,-300.0,0.00019177,2]
[403697904,1769490645879,-300.0,0.00019177,2]
[403697905,1769490645888,-300.0,0.00019177,2]
[403697906,1769490645898,-500.0,0.00019178,2]
[403697907,1769490645907,-500.0,0.00019178,2]
[403697908,1769490645917,-500.0,0.00019178,2]
[403697909,1769490645926,-500.0,0.00019178,2]
[403697910,1769490645935,-327.5775629,0.00019178,2]
[403697911,1769490645944,-500.0,0.00019178,2]
[403697912,1769490645954,-500.0,0.00019178,2]
[403697913,1769490645963,-500.0,0.00019178,2]
[403697914,1769490645973,-500.0,0.00019178,2]
[403697915,1769490645982,-500.0,0.00019178,2]
[403697916,1769490645991,-500.0,0.00019178,2]
[403697917,1769490646002,-500.0,0.00019178,2]
[403697918,1769490646011,-500.0,0.00019178,2]
[403697919,1769490646020,-500.0,0.00019178,2]
[403697920,1769490646031,-500.0,0.00019178,2]
[403697921,1769490646044,-151.0,0.00019178,2]
[403697922,1769490646054,-151.0,0.00019178,2]
[403697923,1769490646063,-151.0,0.00019178,2]
[403697924,1769490646074,-151.0,0.00019178,2]
[403697925,1769490646083,-151.0,0.00019178,2]
[403697926,1769490646092,-151.0,0.00019178,2]
[403697927,1769490646101,-290.08099,0.00019178,2]
[403697928,1769490646111,-151.0,0.00019178,2]
[403697929,1769490646121,-151.0,0.00019178,2]
[403697930,1769490646131,-151.0,0.00019178,2]
[403697931,1769490646141,-151.0,0.00019178,2]
[403697932,1769490646151,-151.0,0.00019178,2]
[403697933,1769490646164,-151.0,0.00019178,2]
[403697934,1769490646175,-151.0,0.00019178,2]
[403697935,1769490646184,-151.0,0.00019178,2]
[403697937,1769490646194,-151.0,0.00019178,2]
[403697938,1769490646203,-151.0,0.00019178,2]
[403697940,1769490646214,-151.0,0.00019178,2]
[403697942,1769490646223,-206.24322,0.00019178,2]
[403697944,1769490646232,-2806.026141,0.00019178,2]
[403697945,1769490646241,-2806.026141,0.00019178,2]
[403697946,1769490646250,-2806.026141,0.00019178,2]
[403697947,1769490646259,-2806.026141,0.00019178,2]
[403697948,1769490646268,-2806.026141,0.00019178,2]
[403697949,1769490646278,-2806.026141,0.00019178,2]
[403697950,1769490646288,-2806.026141,0.00019178,2]
[403697951,1769490646297,-2806.026141,0.00019178,2]
[403697952,1769490646310,-2806.026141,0.00019178,2]
[403697953,1769490646319,-2806.026141,0.00019178,2]
[403697954,1769490646328,-2806.026141,0.00019178,2]
[403697955,1769490646337,-2806.026141,0.00019178,2]
[403697956,1769490646347,-2806.026141,0.00019178,2]
[403697958,1769490646357,-2806.026141,0.00019178,2]
[403697959,1769490646366,-2806.026141,0.00019178,2]
[403697960,1769490646375,-2806.026141,0.00019178,2]
[403697961,1769490646386,-3282.141236,0.00019178,2]
[403697962,1769490646397,-3282.141236,0.00019178,2]
[403697963,1769490646407,-3282.141236,0.00019178,2]
[403697965,1769490646416,-3282.141236,0.00019178,2]
[403697966,1769490646425,-3282.141236,0.00019178,2]
[403697967,1769490646435,-3282.141236,0.00019178,2]
[403697968,1769490646445,-3282.141236,0.00019178,2]
[403697969,1769490646454,-3282.141236,0.00019178,2]
[403697970,1769490646464,-3282.141236,0.00019178,2]
[403697971,1769490646473,-3282.141236,0.00019178,2]
[403697972,1769490646483,-3282.141236,0.00019178,2]
[403697974,1769490646492,-3282.141236,0.00019178,2]
[403697975,1769490646501,-3282.141236,0.00019178,2]
[403697976,1769490646511,-3282.141236,0.00019178,2]
[403697977,1769490646520,-3282.141236,0.00019178,2]
[403697978,1769490646529,-3282.141236,0.00019178,2]
[403697979,1769490646538,-20128.29,0.00019178,2]
[403697980,1769490646547,-168.0,0.00019205,2]
[403697981,1769490646557,-168.0,0.00019258,2]
[403697982,1769490646566,-503.0,0.00019292,3]
[403697983,1769490646577,-537.0,0.00019337,2]
[403697984,1769490646586,-166.66,0.00019366,2]
[403697985,1769490646596,-537.0,0.00019406,2]
[403697986,1769490646605,-215.8859099,0.00019406,2]
[403697987,1769490646615,-537.0,0.00019481,2]
[403697988,1769490646624,-300.0,0.00019499,2]
[403697989,1769490646633,-300.0,0.00019499,2]
[403697991,1769490646642,-300.0,0.00019499,2]
[403697992,1769490646651,-41633.96317344,0.000195,2]
[403697993,1769490646661,-150.00414663,0.00019519,7]
[403697994,1769490646671,-537.0,0.00019539,2]
[403697995,1769490646680,-537.0,0.00019565,2]
[403697996,1769490646689,-346.92554585,0.00019588,2]
[403697997,1769490646698,-721.12765535,0.00019589,2]
[403697998,1769490646707,-3543.0,0.00019589,2]
[403698000,1769490646716,-151.0,0.00019589,2]
[403698001,1769490646725,-599.60298507,0.00019589,2]
[403698002,1769490646734,-987.88080104,0.0001959,2]
[403698003,1769490646742,-376.6589444,0.00019599,2]
[403698004,1769490646751,-868.0,0.00019614,2]
[403698005,1769490646760,-1000.0,0.0001964,2]
[403698006,1769490646769,-916.0,0.00019641,2]
[403698007,1769490646777,-1204.0,0.00019641,2]
[403698008,1769490646786,-4831.0,0.00019641,2]
[403698009,1769490646795,-6570.0,0.00019641,2]
[403698010,1769490646803,-567.0,0.00019641,2]
[403698011,1769490646812,-2000.0,0.000197,2]
[403698012,1769490646821,-300.0,0.00019733,2]
[403698013,1769490646831,-300.0,0.00019733,2]
[403698014,1769490646840,-213.0,0.00019734,2]
[403698015,1769490646849,-200.0,0.00019734,2]
[403698016,1769490646860,-171.115,0.00019734,2]
[403698017,1769490646868,-150.16,0.00019734,2]
[403698018,1769490646878,-3477.0,0.00019734,2]
[403698019,1769490646888,-1408.0,0.00019734,2]
[403698020,1769490646898,-1334.453,0.00019734,2]
[403698021,1769490646907,-615.589,0.00019734,2]
[403698023,1769490646916,-1271.304,0.00019734,2]
[403698024,1769490646926,-184.285,0.00019734,2]
[403698025,1769490646936,-1000.0,0.00019799,2]
[403698026,1769490646947,-161.0,0.000198,3]
[403698027,1769490646957,-161.0,0.000198,3]
[403698028,1769490646967,-161.0,0.000198,4]
[403698029,1769490646977,-164.25,0.000198,4]
[403698030,1769490646987,-4922.68431337,0.000199,3]
[403698031,1769490647264,-503.0,0.00019937,3]
[403698032,1769490647275,-300.0,0.00019949,2]
[403698033,1769490647288,-300.0,0.00019949,2]
[403698034,1769490647297,-307.77367355,0.00019949,2]
[403698035,1769490647309,-359882.26250917,0.0001995,15]
[403698036,1769490647318,-151.0,0.0001995,2]
[403698037,1769490647328,-151.0,0.0001995,2]
[403698038,1769490647337,-151.0,0.0001995,2]
[403698039,1769490647347,-151.0,0.0001995,2]
[403698040,1769490647356,-151.0,0.0001995,2]
[403698041,1769490647366,-579.966456,0.0001995,2]
[403698042,1769490647377,-579.966456,0.0001995,2]
[403698043,1769490647387,-579.966456,0.0001995,2]
[403698044,1769490647396,-579.966466,0.0001995,2]
[403698045,1769490647407,-2806.026141,0.0001995,2]
[403698046,1769490647416,-2806.026141,0.0001995,2]
[403698047,1769490647426,-2806.026141,0.0001995,2]
[403698048,1769490647436,-2806.026139,0.0001995,2]
[403698049,1769490647445,-151.0,0.0001995,2]
[403698050,1769490647456,-151.0,0.0001995,2]
[403698051,1769490647466,-800.749989,0.0001995,2]
[403698052,1769490647476,-800.749989,0.0001995,2]
[403698053,1769490647485,-800.749989,0.0001995,2]
[403698054,1769490647495,-800.749989,0.0001995,2]
[403698055,1769490647505,-3282.141236,0.0001995,2]
[403698056,1769490647516,-3282.141236,0.0001995,2]
[403698057,1769490647525,-3282.141236,0.0001995,2]
[403698058,1769490647535,-3282.14124596,0.0001995,2]
[403698059,1769490647544,-300.0,0.00019999,2]
[403698060,1769490647553,-300.0,0.00019999,2]
[403698061,1769490647562,-1533.13853751,0.0002,2]
[403698062,1769490647572,-25592.35728535,0.0002,2]
[403698063,1769490647582,-367579.11330492,0.0002,4]
[403698064,1769490647591,-2464.68,0.0002,2]
[403698065,1769490647600,-8300.0,0.0002,4]
[403698066,1769490647609,-3950.0,0.0002,2]
[403698067,1769490647618,-1294.38250381,0.0002,2]
[403698068,1769490647627,-2937.44775893,0.0002,7]
[403698069,1769490647636,-529.23763949,0.0002,7]
[403698070,1769490647646,-1044.83769152,0.0002,2]
[403698071,1769490647655,-2863.28531972,0.0002,2]
[403698072,1769490647664,-2171.90532903,0.0002,7]
[403698073,1769490647673,-12922.47331814,0.0002,2]
[403698074,1769490647682,-152.0,0.0002,2]
[403698075,1769490647692,-308.96,0.0002,2]
[403698076,1769490647701,-1000.0,0.0002,2]
[403698077,1769490647710,-166.75275926,0.0002,20]
[403698078,1769490647719,-1000.0,0.0002,7]
[403698079,1769490647730,-1024.43239068,0.00020138,2]
[403698080,1769490647739,-3292.0,0.00020253,2]
[403698081,1769490647748,-1000.0,0.00020327,2]
[403698082,1769490647757,-1000.0,0.0002034,2]
[403698083,1769490647766,-652.78,0.000204,7]
[403698084,1769490647775,-1000.0,0.0002049,2]
[403698085,1769490647783,-500.0,0.00020535,2]
[403698086,1769490647791,-500.0,0.00020536,2]
[403698087,1769490647799,-500.0,0.00020537,2]
[403698088,1769490647808,-331.451244,0.00020538,2]
[403698089,1769490647817,-1000.0,0.00020543,2]
[403698091,1769490647825,-154.25,0.00020548,2]
[403698092,1769490647834,-2082.58,0.00020548,2]
[403698093,1769490647841,-367.84,0.00020569,2]
[403698094,1769490647849,-503.0,0.00020583,4]
[403698095,1769490647858,-161.0,0.000206,5]
[403698096,1769490647866,-1000.0,0.00020631,2]
[403698097,1769490647875,-1062.33638913,0.00020686,2]
[403698098,1769490647884,-158.95,0.00020727,2]
[403698099,1769490647892,-150.0,0.00020729,2]
[403698100,1769490647901,-868.08,0.00020775,2]
[403698101,1769490647910,-200.0,0.00020815,2]
[403698102,1769490647919,-1000.0,0.00020826,2]
[403698103,1769490647928,-150.0,0.00020852,2]
[403698104,1769490647937,-200.0,0.00020881,2]
[403698105,1769490647947,-150.00414663,0.00020888,12]
[403698106,1769490647955,-376.6589444,0.00020899,2]
[403698107,1769490647964,-150.0,0.000209,2]
[403698108,1769490647974,-359.76179104,0.00020957,2]
[403698109,1769490647983,-500.0,0.0002097,2]
[403698110,1769490647994,-500.0,0.0002097,2]
[403698111,1769490648004,-500.0,0.0002097,2]
[403698112,1769490648015,-1000.0,0.0002097,2]
[403698113,1769490648024,-500.0,0.0002097,2]
[403698114,1769490648035,-1000.0,0.0002097,2]
[403698115,1769490648046,-500.0,0.0002097,2]
[403698116,1769490648057,-1000.0,0.0002097,2]
[403698117,1769490648067,-500.0,0.0002097,2]
[403698118,1769490648076,-1000.0,0.0002097,2]
[403698119,1769490648086,-502.29528753,0.0002097,2]
[403698120,1769490648096,-1000.0,0.0002097,2]
[403698121,1769490648106,-1000.0,0.0002097,2]
[403698122,1769490648116,-1330.46047086,0.0002097,2]
[403698123,1769490648125,-160.0,0.00021,7]
[403698124,1769490648135,-350.0,0.00021,2]
[403698125,1769490648145,-150.0,0.00021,2]
[403698126,1769490648156,-868.08,0.00021049,2]
[403698127,1769490648165,-503.0,0.00021229,5]
[403698129,1769490648175,-1101.64283553,0.00021234,2]
[403698130,1769490648183,-200.0,0.00021285,2]
[403698131,1769490648193,-200.0,0.00021342,2]
[403698132,1769490648203,-200.0,0.00021689,2]
[403698133,1769490648212,-300.0,0.00021756,2]
[403698134,1769490648221,-300.0,0.00021756,2]
[403698135,1769490648231,-9999.99,0.00021757,2]
[403698136,1769490648241,-24451.51,0.00021757,2]
[403698137,1769490648251,-150.99,0.00021757,2]
[403698138,1769490648260,-1142.40362045,0.00021782,2]
[403698139,1769490648270,-503.0,0.00021875,5]
[403698140,1769490648279,-371.0488632,0.0002189,2]
[403698141,1769490648288,-5000.0,0.00021918,2]
[403698142,1769490648297,-151.0,0.00021918,2]
[403698143,1769490648311,-151.0,0.00021918,2]
[403698144,1769490648320,-151.0,0.00021918,2]
[403698145,1769490648329,-151.0,0.00021918,2]
[403698146,1769490648339,-151.0,0.00021918,2]
[403698147,1769490648349,-151.0,0.00021918,2]
[403698148,1769490648359,-201.756977,0.00021918,2]
[403698149,1769490648368,-200.0,0.0002192,2]
[403698150,1769490648378,-200.0,0.00021929,2]
[403698151,1769490648387,-200.0,0.0002193,2]
[403698152,1769490648396,-500.0,0.00021973,2]
[403698153,1769490648405,-500.0,0.00021973,2]
[403698155,1769490648415,-500.56911444,0.00021973,2]
[403698156,1769490648425,-500.0,0.00021973,2]
[403698157,1769490648434,-500.0,0.00021973,2]
[403698158,1769490648444,-500.0,0.00021973,2]
[403698159,1769490648456,-500.0,0.00021973,2]
[403698160,1769490648465,-500.0,0.00021973,2]
[403698161,1769490648475,-500.0,0.00021973,2]
[403698162,1769490648487,-4551.14,0.00022,2]
[403698163,1769490648497,-1830.67089178,0.00022,4]
[403698164,1769490648507,-6198.23,0.00022,7]
[403698165,1769490648516,-1000.0,0.00022,2]
[403698166,1769490648525,-161.0,0.00022,2]
[403698167,1769490648534,-376.0,0.00022,2]
[403698168,1769490648544,-500.0,0.0002217,2]
[403698169,1769490648552,-1000.0,0.0002217,2]
[403698170,1769490648561,-161.0,0.00022192,7]
[403698171,1769490648571,-376.0,0.00022192,7]
[403698172,1769490648580,-376.6589444,0.00022199,2]
[403698173,1769490648590,-200.0,0.0002221,2]
[403698175,1769490648599,-150.00414663,0.00022256,16]
[403698176,1769490648608,-3055.0,0.00022273,2]
[403698177,1769490648618,-158.95,0.00022322,2]
[403698178,1769490648628,-373.07297731,0.00022326,2]
[403698179,1769490648637,-747.8093786,0.00022328,2]
[403698180,1769490648647,-3543.0,0.00022328,2]
[403698181,1769490648656,-621.78829552,0.00022328,2]
[403698183,1769490648665,-1184.6725544,0.0002233,2]
[403698184,1769490648674,-200.0,0.00022348,2]
[403698185,1769490648683,-1000.0,0.0002236,2]
[403698186,1769490648692,-200.0,0.00022456,2]
[403698187,1769490648701,-501.71172286,0.00022521,2]
[403698188,1769490648710,-1001.28496341,0.00022521,2]
[403698189,1769490648719,-503.0,0.00022521,6]
[403698190,1769490648729,-2492.31975462,0.000226,2]
[403698191,1769490648738,-367.84,0.00022626,2]
[403698192,1769490648748,-916.0,0.00022641,2]
[403698193,1769490648757,-1204.0,0.00022641,2]
[403698194,1769490648766,-4831.0,0.00022641,2]
[403698195,1769490648775,-6570.0,0.00022641,2]
[403698196,1769490648784,-567.0,0.00022641,2]
[403698197,1769490648794,-3477.0,0.00022734,2]
[403698198,1769490648803,-1408.0,0.00022734,2]
[403698199,1769490648812,-1333.0,0.00022734,2]
[403698200,1769490648821,-615.0,0.00022734,2]
[403698201,1769490648830,-1269.0,0.00022734,2]
[403698203,1769490648840,-184.0,0.00022734,2]
[403698204,1769490648849,-500.0,0.00022739,2]
[403698205,1769490648858,-1228.50543892,0.00022878,2]
[403698206,1769490648867,-400.0,0.00023,2]
[403698207,1769490648877,-200.0,0.00023004,2]
[403698208,1769490648886,-161.0,0.00023014,7]
[403698209,1769490648895,-376.0,0.00023014,7]
[403698210,1769490648904,-200.0,0.00023019,2]
[403698211,1769490648913,-503.0,0.00023167,6]
[403698212,1769490648923,-6198.23,0.000232,7]
[403698213,1769490648933,-2000.0,0.000234,2]
[403698214,1769490648942,-376.6589444,0.00023499,2]
[403698215,1769490648951,-150.00414663,0.00023625,21]
[403698216,1769490648960,-12481.0,0.00023684,2]
[403698217,1769490648969,-386.87667747,0.00023695,2]
[403698218,1769490648978,-503.0,0.00023813,7]
[403698219,1769490648987,-4551.14,0.000239,2]
[403698220,1769490648996,-180.81086108,0.00023916,2]
[403698221,1769490649005,-158.95,0.00023916,2]
[403698222,1769490649014,-12481.0,0.00023929,2]
[403698223,1769490649023,-1000.0,0.00024,2]
[403698224,1769490649036,-166.0,0.00024164,7]
[403698225,1769490649045,-376.0,0.00024164,7]
[403698226,1769490649054,-12481.0,0.00024173,2]
[403698227,1769490649063,-808.81,0.00024225,30]
[403698228,1769490649072,-969.46,0.00024364,2]
[403698230,1769490649082,-969.46,0.00024364,2]
[403698231,1769490649091,-969.46,0.00024364,2]
[403698232,1769490649100,-484.83,0.00024364,2]
[403698233,1769490649108,-484.83,0.00024364,2]
[403698234,1769490649118,-1000.0,0.00024392,2]
[403698235,1769490649127,-12481.0,0.00024417,2]
[403698236,1769490649136,-503.0,0.00024458,8]
[403698237,1769490649144,-1225.03,0.00024658,2]
[403698238,1769490649153,-193.400251,0.00024658,2]
[403698239,1769490649162,-193.400251,0.00024658,2]
[403698240,1769490649171,-193.400251,0.00024658,2]
[403698241,1769490649180,-193.400251,0.00024658,2]
[403698242,1769490649189,-193.400251,0.00024658,2]
[403698243,1769490649198,-193.400251,0.00024658,2]
[403698244,1769490649205,-193.400251,0.00024658,2]
[403698245,1769490649214,-193.400251,0.00024658,2]
[403698246,1769490649223,-193.400251,0.00024658,2]
[403698247,1769490649233,-193.400251,0.00024658,2]
[403698248,1769490649242,-193.400251,0.00024658,2]
[403698249,1769490649251,-193.400251,0.00024658,2]
[403698250,1769490649260,-193.400251,0.00024658,2]
[403698251,1769490649269,-193.400251,0.00024658,2]
[403698252,1769490649279,-193.400251,0.00024658,2]
[403698253,1769490649288,-193.400251,0.00024658,2]
[403698254,1769490649297,-193.400251,0.00024658,2]
[403698256,1769490649309,-193.400251,0.00024658,2]
[403698257,1769490649318,-193.400251,0.00024658,2]
[403698258,1769490649328,-193.400251,0.00024658,2]
[403698259,1769490649338,-1000.0,0.00024658,2]
[403698260,1769490649350,-150.0,0.00024658,2]
[403698261,1769490649360,-151.0,0.00024658,2]
[403698262,1769490649369,-151.0,0.00024658,2]
[403698263,1769490649379,-151.0,0.00024658,2]
[403698264,1769490649389,-151.0,0.00024658,2]
[403698265,1769490649398,-151.0,0.00024658,2]
[403698266,1769490649408,-151.0,0.00024658,2]
[403698267,1769490649417,-151.0,0.00024658,2]
[403698268,1769490649426,-151.0,0.00024658,2]
[403698269,1769490649435,-188.836477,0.00024658,2]
[403698270,1769490649444,-12481.0,0.00024661,2]
[403698271,1769490649453,-367.84,0.00024682,120]
[403698272,1769490649463,-376.6589444,0.00024799,2]
[403698273,1769490649473,-6198.23,0.000248,7]
[403698274,1769490649483,-608218.566863,0.000248,3]
[403698275,1769490649492,-609437.213419,0.000249,3]
[403698276,1769490649501,-12481.0,0.00024905,2]
[403698277,1769490649510,-150.00414663,0.00024993,25]
[403698278,1769490649520,-1318.52217941,0.00025,4]